lending/lending_fUSD_20250424
["ID","MTS","AMOUNT","RATE_DAILY","PERIOD"]
[358876998,1745507444012,-150.042422,0.00042798,120]
[358876999,1745507444023,-6173.72014121,0.00042799,6]
[358877000,1745507444034,-200.0,0.00042799,6]
[358877001,1745507444044,-4093.25,0.000428,2]
[358877002,1745507444054,-3192.93,0.000428,2]
[358877003,1745507444064,-3225.6,0.000428,2]
[358877004,1745507444074,-1307.94,0.000428,33]
[358877005,1745507444085,-1307.94,0.000428,33]
[358877006,1745507444097,-1307.94,0.000428,33]
[358877007,1745507444107,-1307.94,0.000428,33]
[358877008,1745507444116,-1307.94,0.000428,33]
[358877009,1745507444126,-1307.94,0.000428,33]
[358877010,1745507444139,-1307.94,0.000428,33]
[358877011,1745507444149,-1307.94,0.000428,33]
[358877012,1745507444158,-1307.94,0.000428,33]
[358877013,1745507444168,-1307.94,0.000428,33]
[358877014,1745507444179,-1307.94,0.000428,33]
[358877015,1745507444189,-1307.94,0.000428,33]
[358877016,1745507444200,-150.0,0.00042807,30]
[358877018,1745507444210,-200.0,0.00042844,7]
[358877020,1745507444220,-200.0,0.00042844,7]
[358877023,1745507444230,-150.0,0.00042844,2]
[358877024,1745507444240,-200.0,0.00042844,7]
[358877025,1745507444249,-153.84,0.00042877,30]
[358877026,1745507444259,-1000.0,0.00042877,14]
[358877027,1745507444268,-1000.0,0.00042877,14]
[358877029,1745507444278,-150.0,0.00042878,30]
[358877031,1745507444287,-412.25499,0.00042888,30]
[358877033,1745507444298,-156.79902653,0.0004289,9]
[358877035,1745507444307,-1500.0,0.00042894,31]
[358877037,1745507444317,-207.2,0.000429,32]
[358877039,1745507444327,-102510.35228919,0.000429,120]
[358877041,1745507444338,-6618.49,0.000429,14]
[358877043,1745507444349,-207.2,0.000429,32]
[358877045,1745507444358,-1013.1,0.000429,60]
[358877047,1745507444368,-1800.0,0.000429,15]
[358877048,1745507444378,-500.0,0.00042904,7]
[358877049,1745507444391,-500.0,0.00042904,7]
[358877050,1745507444401,-500.0,0.00042904,7]
[358877051,1745507444411,-500.0,0.00042904,7]
[358877052,1745507444756,-500.0,0.00042904,7]
[358877053,1745507444767,-500.0,0.00042904,7]
[358877054,1745507444777,-809.0,0.00042904,7]
[358877055,1745507444788,-150.0,0.00042948,30]
[358877056,1745507444800,-406.44498512,0.00042959,2]
[358877057,1745507444812,-289.93,0.0004296,120]
[358877058,1745507444822,-150.5,0.0004297,120]
[358877059,1745507444833,-400.0,0.0004297,3]
[358877060,1745507444844,-400.0,0.0004297,3]
[358877061,1745507444854,-400.0,0.0004297,3]
[358877062,1745507444864,-400.0,0.0004297,3]
[358877063,1745507444874,-500.0,0.00042973,10]
[358877064,1745507444887,-150.5,0.0004298,120]
[358877065,1745507444899,-42249.00104485,0.00042993,2]
[358877066,1745507444911,-351.17656367,0.00042993,60]
[358877067,1745507444928,-50000.0,0.00043,23]
[358877068,1745507444946,-1254.22,0.00043,5]
[358877069,1745507444965,-1808.0,0.00043,44]
[358877070,1745507444979,-899.99999907,0.00043,44]
[358877071,1745507444990,-200.0,0.00043,70]
[358877072,1745507445000,-200.0,0.00043,70]
[358877073,1745507445011,-1016.44396992,0.00043,120]
[358877074,1745507445021,-512.3,0.00043,120]
[358877075,1745507445033,-900.0,0.00043,2]
[358877076,1745507445043,-894.0,0.00043,90]
[358877077,1745507445053,-362.0,0.00043,90]
[358877078,1745507445063,-1435.72,0.00043,2]
[358877079,1745507445073,-3703.31,0.00043,14]
[358877080,1745507445084,-382.1337,0.00043,2]
[358877081,1745507445093,-420.051,0.00043,2]
[358877082,1745507445104,-894.0,0.00043014,90]
[358877083,1745507445113,-362.0,0.00043014,90]
[358877084,1745507445124,-1000.0,0.00043014,14]
[358877085,1745507445133,-1000.0,0.00043014,14]
[358877086,1745507445144,-500.0,0.00043014,2]
[358877087,1745507445154,-500.0,0.00043014,2]
[358877088,1745507445164,-500.0,0.00043014,2]
[358877089,1745507445174,-500.0,0.00043014,2]
[358877090,1745507445184,-1378.0,0.00043014,2]
[358877091,1745507445194,-150.0,0.00043018,30]
[358877092,1745507445204,-1013.1,0.0004305,61]
[358877093,1745507445213,-1000.0,0.00043082,2]
[358877094,1745507445223,-412.25499,0.00043088,30]
[358877095,1745507445233,-150.0,0.00043088,30]
[358877096,1745507445242,-152.0,0.000431,3]
[358877097,1745507445252,-501.86,0.000431,3]
[358877098,1745507445262,-501.86,0.000431,3]
[358877099,1745507445271,-1000.0,0.00043151,14]
[358877100,1745507445281,-1000.0,0.00043151,14]
[358877101,1745507445291,-150.0,0.00043159,30]
[358877102,1745507445302,-500.0,0.00043178,7]
[358877103,1745507445312,-500.0,0.00043178,7]
[358877104,1745507445322,-254.56803189,0.00043178,7]
[358877105,1745507445332,-500.0,0.00043178,7]
[358877106,1745507445343,-500.0,0.00043178,7]
[358877107,1745507445353,-500.0,0.00043178,7]
[358877108,1745507445363,-809.0,0.00043178,7]
[358877109,1745507445372,-150.042422,0.00043198,120]
[358877110,1745507445381,-500.0,0.000432,120]
[358877111,1745507445393,-500.0,0.000432,120]
[358877112,1745507445402,-500.0,0.000432,120]
[358877113,1745507445412,-500.0,0.000432,120]
[358877114,1745507445421,-500.0,0.000432,120]
[358877115,1745507445431,-500.0,0.000432,120]
[358877116,1745507445440,-500.0,0.000432,120]
[358877117,1745507445449,-500.0,0.000432,120]
[358877118,1745507445459,-500.0,0.000432,120]
[358877119,1745507445469,-500.0,0.000432,120]
[358877120,1745507445479,-500.0,0.000432,120]
[358877121,1745507445488,-500.0,0.000432,120]
[358877122,1745507445498,-500.0,0.000432,120]
[358877123,1745507445508,-500.0,0.000432,120]
[358877124,1745507445517,-500.0,0.000432,120]
[358877125,1745507445527,-500.0,0.000432,120]
[358877126,1745507445536,-500.0,0.000432,120]
[358877127,1745507445549,-500.0,0.000432,120]
[358877128,1745507445563,-500.0,0.000432,120]
[358877129,1745507445573,-500.0,0.000432,120]
[358877130,1745507445583,-500.0,0.000432,120]
[358877131,1745507445594,-500.0,0.000432,120]
[358877132,1745507445603,-500.0,0.000432,120]
[358877133,1745507445613,-500.0,0.000432,120]
[358877134,1745507445622,-500.0,0.000432,120]
[358877135,1745507445631,-500.0,0.000432,120]
[358877136,1745507445643,-500.0,0.000432,120]
[358877137,1745507445653,-500.0,0.000432,120]
[358877138,1745507445663,-500.0,0.000432,120]
[358877139,1745507445673,-500.0,0.000432,120]
[358877140,1745507445683,-500.0,0.000432,120]
[358877141,1745507445692,-500.0,0.000432,120]
[358877142,1745507445703,-500.0,0.000432,120]
[358877143,1745507445715,-500.0,0.000432,120]
[358877144,1745507445725,-500.0,0.000432,120]
[358877145,1745507445735,-500.0,0.000432,120]
[358877146,1745507445744,-500.0,0.000432,120]
[358877147,1745507445754,-500.0,0.000432,120]
[358877148,1745507445764,-500.0,0.000432,120]
[358877149,1745507445773,-500.0,0.000432,120]
[358877150,1745507445783,-500.0,0.000432,120]
[358877151,1745507445795,-500.0,0.000432,120]
[358877152,1745507445805,-500.0,0.000432,120]
[358877153,1745507445815,-799.0,0.000432,120]
[358877154,1745507445825,-1013.1,0.000432,63]
[358877155,1745507445834,-1299.04446766,0.00043209,120]
[358877156,1745507445844,-606.59747725,0.00043209,120]
[358877157,1745507445854,-150.0,0.00043229,30]
[358877158,1745507445863,-5859.58018029,0.00043271,15]
[358877159,1745507445873,-200.0,0.00043273,7]
[358877160,1745507445883,-200.0,0.00043273,7]
[358877161,1745507445894,-894.0,0.00043288,90]
[358877162,1745507445904,-1000.0,0.00043288,14]
[358877163,1745507445914,-1000.0,0.00043288,14]
[358877166,1745507445923,-506.72862729,0.00043288,2]
[358877168,1745507445933,-500.0,0.00043288,2]
[358877169,1745507445943,-500.0,0.00043288,2]
[358877170,1745507445953,-500.0,0.00043288,2]
[358877171,1745507445963,-1378.0,0.00043288,2]
[358877172,1745507445972,-412.25499,0.00043288,30]
[358877173,1745507445982,-150.0,0.00043299,30]
[358877174,1745507445992,-285372.45322331,0.000433,5]
[358877175,1745507446002,-6618.49,0.000433,14]
[358877176,1745507446011,-1995.373864,0.0004335,64]
[358877177,1745507446021,-167.87529402,0.00043354,18]
[358877178,1745507446030,-150.0,0.0004337,30]
[358877179,1745507446040,-1000.0,0.00043425,14]
[358877180,1745507446050,-1000.0,0.00043425,14]
[358877181,1745507446059,-718.0,0.00043425,14]
[358877182,1745507446069,-150.0,0.0004344,30]
[358877183,1745507446078,-159523.07779361,0.0004344,30]
[358877191,1745507446838,-362.0,0.00039183,30]
[358877192,1745507446847,-3664.13882849,0.0004344,30]
[358877193,1745507446859,-819.8943,0.0004344,30]
[358877194,1745507446871,-601.0,0.0004344,30]
[358877195,1745507446901,-5103.29948,0.0004344,30]
[358877196,1745507446921,-23998.18225753,0.0004344,30]
[358877197,1745507446932,-2996.94589599,0.0004344,30]
[358877198,1745507446944,-7215.82727736,0.0004344,30]
[358877199,1745507447043,-22176.44700526,0.0004344,30]
[358877200,1745507447083,-50348.70192654,0.0004344,30]
[358877201,1745507447096,-5391.64837769,0.0004344,30]
[358877202,1745507447107,-2997.28035449,0.0004344,30]
[358877203,1745507447119,-1377.89694725,0.0004344,30]
[358877204,1745507447179,-3487.07860722,0.0004344,30]
[358877205,1745507447191,-4319.5336274,0.0004344,30]
[358877211,1745507521547,150.0,0.00022,117]
[358877212,1745507521698,150.0,0.00021,117]
[358877213,1745507521816,150.0,0.00028309,117]
[358877261,1745507945389,311.5953722,1e-06,2]
[358877262,1745507945721,311.5953722,1e-06,2]
[358877263,1745507946039,311.5953722,1e-06,2]
[358877264,1745507946372,311.5953722,1e-06,2]
[358877269,1745508146421,-6526.39,0.0001988,2]
[358877271,1745508244045,1214.0,0.00037808,60]
[358877272,1745508296745,3380.52,0.00037808,60]
[358877275,1745508313539,845.25,0.00037808,60]
[358877278,1745508346678,2535.3916634,0.00037808,60]
[358877279,1745508376663,4225.65,0.00037808,60]
[358877283,1745508443339,250.0,0.00017,2]
[358877284,1745508444402,300.0,0.00019,2]
[358877285,1745508464252,2535.39,0.00037808,60]
[358877286,1745508467491,68303.73669405,0.0003,120]
[358877287,1745508467538,18564.41092973,0.0003,120]
[358877288,1745508475878,3150.0,0.0002,4]
[358877306,1745508550546,182.0,0.0003,120]
[358877327,1745508632161,-270.9412,0.0001983,2]
[358877328,1745508632175,-3377.73133668,0.0001983,2]
[358877329,1745508632185,-250.0,0.00019873,2]
[358877330,1745508632196,-5218.91324255,0.0001988,2]
[358877331,1745508632208,-1228.61634515,0.0001988,2]
[358877332,1745508632219,-354.93356831,0.0001988,2]
[358877333,1745508632236,-59.3011532,0.0001988,2]
[358877334,1745508632247,-1810.1664468,0.00019885,2]
[358877335,1745508632260,-1280.38744199,0.00019885,2]
[358877341,1745508632545,-1039.99846481,0.00019885,2]
[358877342,1745508632555,-573.00153519,0.00019885,2]
[358877343,1745508632567,-897.77785164,0.00019885,2]
[358877346,1745508632643,-409.468055,0.00019885,2]
[358877347,1745508632652,-715.45524123,0.00019886,2]
[358877348,1745508632731,-2379.61534323,0.00019886,2]
[358877349,1745508632746,-725.50113669,0.00019886,2]
[358877350,1745508632756,-13388.15430921,0.00019888,2]
[358877351,1745508632768,-752.70772119,0.00019892,2]
[358877352,1745508632778,-1200.0,0.00019899,2]
[358877353,1745508632788,-300.0,0.00019899,2]
[358877354,1745508632798,-212.0522449,0.000199,2]
[358877355,1745508632807,-350.49228099,0.000199,2]
[358877356,1745508632817,-4425.57611706,0.000199,2]
[358877357,1745508632827,-331.76810371,0.000199,2]
[358877358,1745508632838,-85949.41257295,0.000199,2]
[358877359,1745508632848,-867.06825137,0.000199,2]
[358877360,1745508632858,-867.06825136,0.000199,2]
[358877361,1745508632868,-3820.57172115,0.00019905,2]
[358877362,1745508632877,-3642.49488349,0.00019909,2]
[358877363,1745508632889,-893.07938716,0.00019909,2]
[358877364,1745508632899,-1088.96381071,0.00019912,2]
[358877365,1745508632909,-1336.91413655,0.00019914,2]
[358877366,1745508632921,-150.0,0.00019915,2]
[358877367,1745508632931,-3642.49488349,0.00019924,2]
[358877368,1745508632941,-2121.83722285,0.0001993,2]
[358877369,1745508632952,-1088.96381071,0.00019931,2]
[358877370,1745508632962,-4130.5523536,0.00019935,2]
[358877371,1745508632972,-1032.63808852,0.00019936,2]
[358877372,1745508632982,-6527.26346981,0.00019936,2]
[358877373,1745508632992,-1880.24744183,0.00019941,2]
[358877374,1745508633002,-24156.71133741,0.00019946,2]
[358877375,1745508633012,-5804.19927118,0.00019949,2]
[358877376,1745508633022,-1336.91413655,0.00019951,2]
[358877377,1745508633033,-1032.63808852,0.00019954,2]
[358877378,1745508633044,-5804.19927118,0.00019954,2]
[358877379,1745508633054,-1192.98818504,0.00019961,2]
[358877380,1745508633071,-24217.75468018,0.00019964,2]
[358877381,1745508633092,-3347.03857742,0.00019969,2]
[358877382,1745508633114,-1909.0,0.00019973,2]
[358877383,1745508633124,-4354.0,0.00019973,2]
[358877384,1745508633135,-2583.0,0.00019973,2]
[358877385,1745508633145,-3347.03857742,0.00019973,2]
[358877386,1745508633156,-6527.26346981,0.00019975,2]
[358877388,1745508633165,-24156.71133741,0.00019975,2]
[358877389,1745508633176,-893.07938716,0.00019982,2]
[358877390,1745508633186,-2121.83722285,0.00019982,2]
[358877391,1745508633196,-24217.75468018,0.00019984,2]
[358877392,1745508633206,-1192.98818504,0.00019995,2]
[358877393,1745508633216,-272848.63281522,0.0002,2]
[358877508,1745508638273,-394.13648668,0.0001999,2]
[358877509,1745508638283,-394.13648668,0.0001999,2]
[358877510,1745508638292,-122.75702664,0.0002,2]
[358877511,1745508638304,-643635.35473645,0.0002,2]
[358877512,1745508638313,-706717.79912364,0.0002,2]
[358877513,1745508638325,-2476863.02479425,0.0002,2]
[358877514,1745508638335,-683.05,0.0002,2]
[358877515,1745508638345,-16772.45020575,0.0002,2]
[358877516,1745508638356,-1685.1847563,0.0002,2]
[358877517,1745508638368,-7631.04508113,0.0002,2]
[358877518,1745508638419,-273.4543321,0.0002,2]
[358877519,1745508638430,-1476.41154043,0.0002,2]
[358877520,1745508638442,-1496.61354224,0.0002,2]
[358877521,1745508638570,-1406.13919845,0.0002,2]
[358877530,1745508640439,-2100.05512954,0.0002,2]
[358877531,1745508640451,-4128.97177876,0.0002,2]
[358877532,1745508640463,-606.05829084,0.0002,2]
[358877533,1745508640475,-255.91441303,0.0002,2]
[358877534,1745508640498,-17550.42899997,0.0002,2]
[358877535,1745508640521,-515.22620745,0.0002,2]
[358877536,1745508640532,-2167.11851404,0.0002,2]
[358877537,1745508640544,-398.12535987,0.0002,2]
[358877538,1745508640725,-17844.72320692,0.0002,2]
[358877539,1745508640737,-70043.168,0.0002,2]
[358877540,1745508640762,-3470.3871961,0.0002,2]
[358877562,1745508644124,-10167.81326789,0.0002,2]
[358877563,1745508644137,-1742.216,0.0002,2]
[358877564,1745508644150,-643.34,0.0002,2]
[358877565,1745508644164,-113882.50322064,0.0002,2]
[358877566,1745508644175,-874.67987411,0.0002,2]
[358877567,1745508644194,-272.0374,0.0002,2]
[358877568,1745508644215,-863.786817,0.0002,2]
[358877569,1745508644299,-317.30057837,0.0002,2]
[358877589,1745508646144,-4674.755666,0.0002,2]
[358877593,1745508646200,-2790.15908406,0.0002,2]
[358877594,1745508646252,-931.066,0.0002,2]
[358877595,1745508646264,-1950.0,0.0002,2]
[358877596,1745508646276,-1792.77672811,0.0002,2]
[358877597,1745508646287,-5596.43310849,0.0002,2]
[358877598,1745508646408,-3000.0,0.0002,2]
[358877599,1745508646420,-1129.49190174,0.0002,2]
[358877600,1745508646547,-1026.87245864,0.0002,2]
[358877606,1745508770929,1006.71,0.00025,30]
[358877608,1745508875698,998.0,0.00030137,120]
[358877610,1745508907553,270.6677347,0.00030136,120]
[358877613,1745509118275,1001.21,0.00018831,2]
[358877614,1745509161380,-1077.37707904,0.00022,14]
[358877615,1745509161403,-2900.0,0.000225,15]
[358877616,1745509161426,-1594.15899065,0.00023,15]
[358877617,1745509161448,-1000.0,0.00023,14]
[358877618,1745509161470,-9865.4507858,0.00024,14]
[358877680,1745509558138,34.93009561,0.00019101,2]
[358877681,1745509558161,4579.31990439,0.00019101,2]
[358877707,1745509746705,200.0,0.0001905,2]
[358877712,1745509772550,267.875433,0.00019025,2]
[358877740,1745509832466,-269.40683763,0.00019106,2]
[358877741,1745509832564,-3382.06316237,0.00019106,2]
[358877742,1745509832574,-155.21,0.00019121,2]
[358877743,1745509832584,-200.0,0.00019289,2]
[358877744,1745509832593,-1189.77609083,0.000193,2]
[358877745,1745509832603,-1190.36,0.00019307,2]
[358877746,1745509832613,-1200.0,0.00019367,2]
[358877747,1745509832623,-2484.62,0.00019368,2]
[358877748,1745509832632,-200.0,0.00019368,2]
[358877749,1745509832641,-200.0,0.00019389,2]
[358877750,1745509832651,-300.0,0.00019501,2]
[358877752,1745509832660,-150.0,0.00019501,2]
[358877754,1745509832670,-168.18,0.00019501,2]
[358877756,1745509832679,-3097.15032352,0.00019502,2]
[358877758,1745509832689,-150.0,0.00019562,2]
[358877760,1745509832698,-23900.0,0.0001957,2]
[358877762,1745509832707,-2596.119,0.000196,2]
[358877764,1745509832716,-178.287,0.000196,2]
[358877766,1745509832725,-1569.0,0.000196,2]
[358877768,1745509832735,-1000.0,0.00019636,2]
[358877770,1745509832744,-2017.61,0.00019698,2]
[358877772,1745509832753,-790.09,0.00019745,2]
[358877774,1745509832763,-262.20514174,0.00019766,2]
[358877776,1745509832772,-206.76,0.0001977,2]
[358877778,1745509832781,-1000.0,0.000199,2]
[358877780,1745509832792,-225.0,0.000199,2]
[358877782,1745509832802,-167.87529401,0.000199,2]
[358877784,1745509832811,-500.0,0.000199,2]
[358877786,1745509832820,-186.70451753,0.000199,2]
[358877788,1745509832829,-225.4464,0.000199,2]
[358877790,1745509832838,-5604.75080952,0.000199,2]
[358877794,1745509832866,-2012.70342489,0.000199,2]
[358877796,1745509832875,-776.82080315,0.000199,2]
[358877799,1745509832885,-2021.75715548,0.000199,2]
[358877881,1745509838423,-478.24284452,0.000199,2]
[358877882,1745509838435,-273.49763539,0.000199,2]
[358877883,1745509838447,-450.30736461,0.000199,2]
[358877884,1745509838458,-500.0,0.00019973,2]
[358877885,1745509838471,-500.0,0.00019973,2]
[358877886,1745509838482,-342.69283539,0.0001999,2]
[358877887,1745509838496,-1103.59494,0.0001999,2]
[358877888,1745509838511,-1769.19999997,0.0001999,2]
[358877889,1745509838523,-749.05,0.0001999,2]
[358877907,1745509841376,-1401.36270952,0.0001999,2]
[358877908,1745509841403,-1395.48800033,0.0001999,2]
[358877909,1745509841499,-9368.51466027,0.0001999,2]
[358877921,1745509845413,-1399.635,0.0001999,2]
[358877922,1745509845656,-426.49326161,0.0001999,2]
[358877927,1745509846357,-21695.77533243,0.0001999,2]
[358877928,1745509846367,-197.06824334,0.0001999,2]
[358877929,1745509846377,-17655.80168028,0.0002,2]
[358877930,1745509846388,-6063.71154672,0.0002,2]
[358877932,1745509846522,-7558.41776409,0.0002,2]
[358877933,1745509846534,-1142.48127422,0.0002,2]
[358877934,1745509846576,-916.83806527,0.0002,2]
[358877935,1745509846624,-7549.31298404,0.0002,2]
[358877936,1745509846639,-1770.59999994,0.0002,2]
[358877976,1745510273789,250.0,0.00017,2]
[358877977,1745510273849,300.0,0.00018252,2]
[358877978,1745510273876,651.14,0.00018252,2]
[358877979,1745510274282,300.0,0.00019,2]
[358877993,1745510572799,12556.64,0.000301,120]
[358877996,1745510574667,4001.66466261,2e-06,2]
[358877997,1745510574689,8554.97533739,2e-06,2]
[358878008,1745510606095,-200.0,0.0001919,2]
[358878009,1745510606119,-150.0,0.00019301,2]
[358878010,1745510606144,-23900.0,0.00019343,2]
[358878011,1745510606168,-164.6009621,0.000197,2]
[358878012,1745510606190,-2773.37128169,0.000198,2]
[358878013,1745510606212,-151.85,0.00019815,2]
[358878014,1745510606236,-200.0,0.00019825,2]
[358878015,1745510606259,-250.0,0.00019849,2]
[358878016,1745510606282,-200.0,0.00019849,2]
[358878017,1745510606304,-522.91466704,0.00019871,2]
[358878018,1745510606327,-1200.0,0.00019898,2]
[358878019,1745510606349,-300.0,0.00019899,2]
[358878020,1745510606371,-3418.1435,0.000199,2]
[358878021,1745510606393,-1804.068,0.000199,2]
[358878022,1745510606416,-175.7267,0.000199,2]
[358878023,1745510606441,-500.0,0.000199,2]
[358878024,1745510606463,-1231.0157,0.000199,2]
[358878025,1745510606486,-699.13872279,0.000199,2]
[358878026,1745510606509,-6855.70881096,0.000199,2]
[358878027,1745510606530,-160.03244358,0.000199,2]
[358878028,1745510606552,-250.0,0.00019902,2]
[358878029,1745510606575,-200.0,0.00019902,2]
[358878030,1745510606597,-500.0,0.00019973,2]
[358878031,1745510606618,-500.90438284,0.00019973,2]
[358878032,1745510606646,-162.34003132,0.00019973,2]
[358878033,1745510606669,-2076.895,0.00019973,2]
[358878034,1745510606693,-178.288,0.00019973,2]
[358878035,1745510606719,-999.99,0.00019973,2]
[358878036,1745510606740,-2348.59,0.00019973,2]
[358878037,1745510606764,-150.99,0.00019973,2]
[358878038,1745510606785,-34569.26156632,0.0001999,2]
[358878039,1745510606808,-197.06824334,0.0001999,2]
[358878040,1745510606830,-572.19398317,0.0002,2]
[358878041,1745510606853,-478302.57383678,0.0002,2]
[358878042,1745510606880,-157989.51546807,0.0002,2]
[358878043,1745510608960,416.63455237,2.49e-06,2]
[358878063,1745510675075,-54610.2741141,0.0001981,2]
[358878064,1745510675098,-300.0,0.00019999,2]
[358878065,1745510675122,-239151.28691838,0.0002,2]
[358878066,1745510675146,-836063.20826752,0.0002,2]
[358878098,1745511031621,-483.878466,0.000198,2]
[358878099,1745511031631,-200.0,0.0001985,2]
[358878100,1745511031643,-1200.0,0.00019899,2]
[358878101,1745511031654,-300.0,0.00019899,2]
[358878102,1745511031664,-1128.27773801,0.000199,2]
[358878103,1745511031674,-324.9675,0.000199,2]
[358878104,1745511031684,-897.21144816,0.000199,2]
[358878105,1745511031695,-102.78855184,0.000199,2]
[358878106,1745511031706,-200.0,0.0001993,2]
[358878107,1745511031717,-149.58124276,0.0001995,2]
[358878108,1745511031731,-50.41875724,0.0001995,2]
[358878109,1745511031743,-505.23712129,0.00019973,2]
[358878110,1745511031752,-164.97584304,0.0002,2]
[358878111,1745511031829,-1234.52556814,0.0002,2]
[358878112,1745511031843,-37099.71319071,0.0002,2]
[358878114,1745511031888,-411.64114999,0.0002,2]
[358878203,1745511040664,-72398.3709233,0.0002,2]
[358878226,1745511043442,-466.59848658,0.0002,2]
[358878233,1745511046200,-0.00014494,0.0002,2]
[358878234,1745511291141,150.0,0.0003,120]
[358878235,1745511310184,290.0,0.00018698,2]
[358878236,1745511310210,613.58,0.00018698,2]
[358878239,1745511670781,2500.0,0.00030137,120]
[358878241,1745511969563,160.77875642,0.000199,3]
[358878245,1745512103945,250.0,0.00017,2]
[358878246,1745512105298,300.0,0.00019,2]
[358878250,1745512120176,2685.15086248,0.000151,2]
[358878251,1745512126600,756.62,0.000301,120]
[358878273,1745512231747,-250.0,0.00019295,2]
[358878274,1745512231758,-200.0,0.00019314,2]
[358878275,1745512231767,-213.5820852,0.00019333,2]
[358878276,1745512231835,-86.4179148,0.00019333,2]
[358878277,1745512231846,-1200.0,0.00019333,2]
[358878278,1745512231855,-300.0,0.00019333,2]
[358878279,1745512231866,-911.05081397,0.00019334,2]
[358878280,1745512231878,-496.41083977,0.00019334,2]
[358878281,1745512231890,-4668.46184484,0.00019334,2]
[358878439,1745512238546,-9905.98650142,0.00019334,2]
[358878440,1745512238556,-500.0,0.00019829,2]
[358878441,1745512238566,-587.500005,0.00019829,2]
[358878442,1745512238575,-250.0,0.0001983,2]
[358878443,1745512238585,-9920.18198768,0.0001983,2]
[358878444,1745512238594,-200.0,0.00019855,2]
[358878445,1745512238603,-729.39174968,0.0001987,2]
[358878446,1745512238613,-246.94945882,0.0001988,2]
[358878447,1745512238623,-150.99,0.0001988,2]
[358878448,1745512238632,-3791.07669269,0.00019895,2]
[358878449,1745512238642,-6224.572,0.000199,2]
[358878450,1745512238651,-17309.806,0.000199,2]
[358878451,1745512238661,-5007.45346232,0.000199,2]
[358878452,1745512238670,-2015.4499642,0.000199,2]
[358878453,1745512238679,-10094.21499295,0.00019902,2]
[358878454,1745512238689,-16857.64551748,0.00019941,2]
[358878455,1745512238699,-3791.07669269,0.00019943,2]
[358878456,1745512238709,-5200.96988435,0.00019966,2]
[358878457,1745512238719,-5200.96988435,0.00019976,2]
[358878458,1745512238728,-10094.21499295,0.00019986,2]
[358878459,1745512238738,-405.80985346,0.0001999,2]
[358878460,1745512238747,-151.0,0.00019999,2]
[358878461,1745512238758,-574.18724245,0.00019999,2]
[358878462,1745512238768,-855.31,0.00019999,2]
[358878463,1745512238777,-494027.34345332,0.00019999,2]
[358878464,1745512238788,-16857.64551748,0.0002,2]
[358878465,1745512238797,-292301.7047179,0.0002,2]
[358878466,1745512238808,-726.81276308,0.0002,2]
[358878467,1745512238818,-1502.19489104,0.0002,2]
[358878468,1745512238828,-683.05,0.0002,2]
[358878469,1745512238838,-90929.79654168,0.0002,2]
[358878470,1745512238847,-628062.29696066,0.0002,2]
[358878471,1745512238859,-630749.99465709,0.0002,2]
[358878472,1745512238870,-1151195.3706824,0.0002,2]
[358878473,1745512238881,-8988.16715886,0.0002001,2]
[358878474,1745512238892,-4955.49028637,0.0002001,2]
[358878475,1745512238903,-5772.0,0.0002001,2]
[358878476,1745512238913,-200.0,0.000201,2]
[358878477,1745512238922,-421.27,0.000201,2]
[358878478,1745512238933,-6907.98,0.000201,2]
[358878479,1745512238944,-1074.0,0.000201,2]